Cogmind - Beta 10.2 @@@ ROGUE MODE // 2021.03.08 @ 00:54:50 Player: Gokudera ElPsyCongroo Result: Destroyed by B-60 Warrior with Heavy Mace Performance ------------- Evolutions (6) 3000 Regions Visited (16) 3200 Robots Destroyed (167) 835 Value Destroyed (6451) 6451 Prototype IDs (27) 540 Alien Tech Used (0) 0 Bonus (1940) 1940 TOTAL SCORE: 15966 Bonus ------- High Alert Combat Kills 180 Follower Combat Kills 413 Met Warlord at Base 500 MAIN.C Attacked Warlord 500 Warlord Defense Kill 428 Friendly Fire -81 Cogmind --------- Core Integrity 0/1150 Matter 300/300 Energy 100/100 System Corruption 5% Temperature Cool (0) Movement Core (550) Ox10 Location -4/Factory Parts ------- > --- POWER (1) -------- (None) > --- PROPULSION (3) --- (None) > --- UTILITY (12) ----- High-capacity Storage Unit > --- WEAPON (3) ------- (None) > --- INVENTORY (12) --- Flexi-carbon Leg Signal Generator Peak State ------------ > --- POWER ------------ Particle Reactor > --- PROPULSION ------- Enhanced Flexi-carbon Leg Enhanced Flexi-carbon Leg Enhanced Flexi-carbon Leg > --- UTILITY ---------- Advanced Power Amplifier Advanced Cooling System High-capacity Storage Unit High-capacity Battery Advanced Signal Interpreter Advanced Terrain Scan Processor Improved Core Analyzer Improved Weapon Cycler Makeshift Armor Plating Force Field > --- WEAPON ----------- Heavy Flak Cannon Vortex Catalyst Activator > --- INVENTORY -------- Light Neutrino Core Experimental Heat Sink High-capacity Storage Unit Makeshift Armor Plating Makeshift System Restoration Module Improved Arc Projector Advanced Plasma Cannon Advanced Plasma Cannon Enhanced Gauss Cannon Signal Generator [Rating: 100] Favorites ----------- Power Particle Reactor Engine Heavy Ion Engine Power Core Light Neutrino Core Reactor Particle Reactor Propulsion Enhanced Flexi-carbon Leg Leg Enhanced Flexi-carbon Leg Wheel Armored Wheel Utility Advanced Signal Interpreter Device Advanced Cooling System Storage High-capacity Storage Unit Processor Advanced Signal Interpreter Hackware System Shield Protection Makeshift Armor Plating Weapon Heavy Flak Cannon Energy Gun High-powered Shock Rifle Energy Cannon Plasma Cannon Ballistic Gun Hypervelocity Coil Gun Ballistic Cannon Heavy Flak Cannon Launcher Grenade Launcher Special Weapon Plasma Cutter Slashing Weapon Makeshift Axe Build | -11 -10 -10 -10 -9 -8 -7 -7 -7 -6 -6 -5 -5 -5 -5 -4 -4 ------- Run | Scr Mat Min Exi Min Mat Fac Low Low Fac Ext Fac Upp Upp War Pro Fac Slots Evolved 12 | . . . . . 4 2 . . 2 . 2 . . . . 2 Power . | . . . . . . . . . . . . . . . . . Propulsion 1 | . . . . . . 1 . . . . . . . . . . Utility 10 | . . . . . 3 1 . . 2 . 2 . . . . 2 Weapon 1 | . . . . . 1 . . . . . . . . . . . Parts Attached 278 | 5 18 7 1 9 44 27 4 2 18 45 34 11 2 10 21 20 Power 26 | 1 2 2 . 1 2 1 . . . 3 4 2 . . 5 3 Engine 12 | 1 2 2 . 1 2 1 . . . 2 1 . . . . . Core 8 | . . . . . . . . . . 1 3 1 . . 2 1 Reactor 6 | . . . . . . . . . . . . 1 . . 3 2 Propulsion 45 | 2 3 . . 2 6 4 . . 1 11 7 . . . 3 6 Treads . | . . . . . . . . . . . . . . . . . Leg 20 | . . . . . 3 . . . . 5 3 . . . 3 6 Wheel 25 | 2 3 . . 2 3 4 . . 1 6 4 . . . . . Hover . | . . . . . . . . . . . . . . . . . Flight . | . . . . . . . . . . . . . . . . . Utility 106 | . 3 1 1 . 19 11 2 . 12 14 15 8 2 3 7 8 Device 61 | . . . . . 10 7 1 . 5 9 12 5 1 1 5 5 Storage 14 | . 1 1 1 . 4 1 . . 3 1 . . 1 . . 1 Processor 9 | . 1 . . . 1 1 1 . . 3 1 . . . 1 . Hackware 1 | . . . . . . . . . 1 . . . . . . . Protection 21 | . 1 . . . 4 2 . . 3 1 2 3 . 2 1 2 Artifact . | . . . . . . . . . . . . . . . . . Weapon 101 | 2 10 4 . 6 17 11 2 2 5 17 8 1 . 7 6 3 Energy Gun 25 | 1 2 . . 2 4 3 . . 1 4 4 . . 2 1 1 Energy Cannon 18 | . . . . . 4 5 1 1 2 . 1 . . . 2 2 Ballistic Gun 19 | 1 2 . . 3 4 1 . . 1 2 2 . . 2 1 . Ballistic Cannon 9 | . . . . . 1 . . . . 3 1 1 . 1 2 . Launcher 16 | . 5 2 . 1 . 1 1 1 1 2 . . . 2 . . Special Weapon 8 | . 1 . . . . 1 . . . 6 . . . . . . Impact Weapon . | . . . . . . . . . . . . . . . . . Slashing Weapon 6 | . . 2 . . 4 . . . . . . . . . . . Piercing Weapon . | . . . . . . . . . . . . . . . . . Special Melee Weapon . | . . . . . . . . . . . . . . . . . Unidentified Prototypes 8 | . . . . . . 1 . . . . 5 . . 1 1 . Parts Lost 105 | . 1 2 . 1 11 2 1 . 3 35 2 4 . 2 11 30 Power 14 | . 1 1 . . 1 . . . . 3 . 1 . . 3 4 Propulsion 19 | . . . . 1 2 . . . 1 8 . . . . 2 5 Utility 36 | . . . . . 2 1 1 . . 10 1 3 . 1 2 15 Weapon 36 | . . 1 . . 6 1 . . 2 14 1 . . 1 4 6 Highest Loss Streak 17 | . 1 2 . 1 5 1 1 . 3 17 1 1 . 2 7 12 Average Slot Usage (%) 95 | . 80 99 100 100 97 98 92 92 92 88 93 99 100 99 93 76 Engine 4 | . 12 14 14 14 9 7 7 7 6 4 1 . . . . . Reactor 1 | . . . . . . . . . . . . 3 5 5 3 3 Leg 8 | . . . . . 8 . . . . . 12 17 17 17 14 13 Wheel 9 | . 28 28 28 28 8 21 15 15 12 14 3 . . . . . Device 15 | . . . . . 13 18 18 15 17 18 16 19 23 22 16 10 Storage 10 | . 1 14 14 14 14 7 7 7 7 11 11 11 11 11 11 9 Processor 16 | . 5 14 14 14 9 11 19 23 20 16 19 18 17 17 17 19 Protection 5 | . 3 . . . 7 6 . . 2 3 4 6 5 5 10 6 Energy Gun 4 | . 10 . . 10 9 7 7 7 5 5 3 5 5 4 . . Energy Cannon 3 | . . . . . 6 10 14 14 12 1 . . . . 5 5 Ballistic Gun 5 | . 14 14 14 13 8 3 . . . 3 3 5 5 4 1 3 Ballistic Cannon 2 | . . . . . . . . . . . 9 5 5 5 5 . Launcher 1 | . 1 7 14 4 . . . . . 1 . . . . . . Naked Turns . | . . . . . . . . . . . . . . . . . Heaviest Build 110 | 6 11 25 23 27 48 64 64 61 68 75 89 92 93 99 110 101 Greatest Support 84 | 20 26 20 20 26 26 40 40 40 44 48 84 84 84 84 84 73 Greatest Overweight (x) 5 | . . 1 1 1 4 1 1 1 2 2 5 1 1 1 2 2 Average Overweight (x) 1 | . . . 1 . 1 1 1 1 1 1 2 . 1 . 1 . Largest Inventory Capacity 20 | 4 6 10 10 10 10 12 12 12 12 12 12 12 20 12 12 20 Average Capacity 11 | 4 4 8 10 10 10 11 12 12 12 12 12 12 12 12 12 12 Most Carried 12 | 4 6 8 10 10 10 12 12 12 12 12 12 12 12 12 12 11 Average Carried 10 | 2 4 6 9 9 9 11 11 12 11 9 11 11 11 11 10 7 Final Capacity 12 | 4 6 10 10 10 10 12 12 12 12 12 12 12 12 12 12 12 Final Carried 12 | 4 6 8 10 10 10 12 12 12 10 10 12 12 12 12 10 2 Class Distribution -------------------- 31% | Tank 15% | Mutant 13% | Gunner 11% | Skirmisher 7% | Scavenger-Mutant 6% | Scavenger-Tank 5% | Scavenger-Skirmisher 3% | Derelict-Tank Dominant Class ---------------- Mutant | -10/Materials Mutant | -10/Mines Mutant | -10/Exiles Scavenger-Mutant | -9/Mines Scavenger-Tank | -8/Materials Skirmisher | -7/Factory Skirmisher | -7/Lower Caves Mutant | -7/Lower Caves Skirmisher | -6/Factory Scavenger-Mutant | -6/Extension Gunner | -5/Factory Gunner | -5/Upper Caves Tank | -5/Upper Caves Tank | -5/Warlord Tank | -4/Proximity Caves Scavenger-Tank | -4/Factory Resources | -11 -10 -10 -10 -9 -8 -7 -7 -7 -6 -6 -5 -5 -5 -5 -4 -4 ----------- Run | Scr Mat Min Exi Min Mat Fac Low Low Fac Ext Fac Upp Upp War Pro Fac Matter Collected 5750 | 251 165 138 30 116 612 349 126 . 188 555 958 764 320 138 861 179 Remotely . | . . . . . . . . . . . . . . . . . Salvage Created 6851 | 35 150 110 . 76 1142 554 182 105 494 604 942 1041 319 47 741 309 Parts 322 | 3 16 4 . 10 62 30 4 7 22 27 36 31 21 3 32 14 Haulers Intercepted 1 | . . . . . . . . . . . 1 . . . . . Recyclers Shooed 5 | . . . . . 1 . . . . 1 2 . . . . 1 Parts Field Recycled . | . . . . . . . . . . . . . . . . . Retrieved Matter . | . . . . . . . . . . . . . . . . . Parts Self-Destructed 167 | . . . . . . . 2 5 . . . 16 21 97 26 . Prevented 26 | . . . . . . . 2 1 . . . 13 2 4 4 . Kills | -11 -10 -10 -10 -9 -8 -7 -7 -7 -6 -6 -5 -5 -5 -5 -4 -4 ------- Run | Scr Mat Min Exi Min Mat Fac Low Low Fac Ext Fac Upp Upp War Pro Fac Combat Hostiles Destroyed 130 | 1 6 2 . 3 24 9 5 4 5 7 14 15 10 3 17 5 Melee 1 | . . 1 . . . . . . . . . . . . . . Guns 58 | 1 1 1 . 1 13 4 2 . . 5 7 9 9 1 3 1 Cannons 47 | . . . . . 6 5 . 2 4 1 4 6 1 . 14 4 AOE 24 | . 5 . . 2 5 . 3 2 1 1 3 . . 2 . . Classes Destroyed 16 | 1 3 . . 1 3 1 1 1 1 1 2 1 . . . . Worker 11 | . . . . . 3 1 . . 2 4 1 . . . . . Builder 5 | . . . . . . . . . 1 1 1 . . . . 2 Tunneler 2 | . . . . 1 . . . . . 1 . . . . . . Hauler 1 | . . . . . . . . . . . 1 . . . . . Recycler 8 | . 1 1 . . 2 . . . 1 1 2 . . . . . Operator 2 | . . . . . . . . . . . 2 . . . . . Watcher 8 | . 1 . . . 2 2 . . 1 2 . . . . . . Swarmer 36 | . 6 . . 1 8 . . 3 . . 4 . 9 . 5 . Grunt 53 | 1 . 2 . 2 12 4 3 . 3 1 4 7 . . 9 5 Brawler 7 | . . . . . 1 . 1 . . . . 4 . 1 . . Duelist 2 | . . . . . . . . . . . . 2 . . . . Sentry 12 | . . . . . 3 1 . . 1 4 . 1 1 . 1 . Hunter 5 | . . . . . . . . 1 . . 2 . . . 2 . Programmer 13 | . . . . . . 4 . . 1 1 4 1 . 2 . . Behemoth 1 | . . . . . . . . . . 1 . . . . . . Thief 1 | . . . . . . . 1 . . . . . . . . . Best Kill Streak 8 | 1 4 2 . 3 8 3 4 3 3 5 6 4 5 2 7 4 Combat Bots Only 7 | 1 3 2 . 2 7 3 4 3 2 2 3 4 5 2 7 2 Max Kills in Single Turn 4 | 1 4 1 . 2 3 2 2 2 2 2 4 1 1 2 1 2 Gunslinging 1 | . . . . . . . . . . 1 . . . . . . Exploded 3 | . 3 . . 2 3 . 2 2 1 1 2 . . 2 . . Melee 1 | . . 1 . . . . . . . . . . . . . . Uniques/NPCs Destroyed . | . . . . . . . . . . . . . . . . . Combat | -11 -10 -10 -10 -9 -8 -7 -7 -7 -6 -6 -5 -5 -5 -5 -4 -4 -------- Run | Scr Mat Min Exi Min Mat Fac Low Low Fac Ext Fac Upp Upp War Pro Fac Damage Taken 15218 | . 162 253 . 111 1609 570 93 235 382 2799 1270 801 303 501 2362 3767 Core 2613 | . 33 77 . 26 242 68 . 18 20 551 143 75 22 21 166 1151 Absorbed by Shields 823 | . . . . . . . . . 21 293 27 68 272 142 . . Core Remaining (%) 62 | 100 . . . 45 56 . . 87 . 32 . . . . 57 . Volleys Fired 403 | 1 16 6 . 8 77 31 7 6 17 42 35 54 25 4 50 24 Largest 3 | 2 2 2 . 2 3 3 3 3 3 3 3 3 3 3 3 3 Hottest 238 | 60 60 50 . 50 165 225 225 225 220 186 166 148 148 153 231 238 Shots Fired 1032 | 2 28 8 . 10 194 91 21 16 46 96 105 160 75 11 106 63 Gun 576 | 2 26 6 . 8 147 40 7 4 17 62 41 107 50 6 20 33 Cannon 409 | . . . . . 47 50 11 11 26 2 64 53 25 4 86 30 Launcher 29 | . 2 2 . 2 . . 3 1 3 15 . . . 1 . . Special 18 | . . . . . . 1 . . . 17 . . . . . . Kinetic 478 | 1 16 6 . 8 78 9 . . 4 20 83 106 50 7 68 22 Thermal 274 | . . . . . 47 60 11 11 26 53 . . . . 25 41 Explosive 28 | . 2 2 . 2 . . 3 1 3 15 . . . . . . Electromagnetic 250 | 1 10 . . . 69 21 7 4 13 8 22 54 25 3 13 . Entropic 1 | . . . . . . . . . . . . . . 1 . . Robot Hit Streak 15 | 1 3 5 . 4 10 8 7 5 9 11 7 12 5 7 15 9 Robot Miss Streak 15 | . 4 1 . 1 10 4 3 1 5 3 8 5 15 7 7 2 Penetration Max 1 | . . . . . . . . . . 1 . 1 1 . . 1 Secondary Targets 3 | . . . . . 2 . . . . 1 . . . . . . Max Gunslinging Chain 1 | . . . . . 1 . . . . 1 . . . . . . Shots Hit Robots 627 | 1 9 10 . 4 106 48 13 10 26 66 77 116 32 5 64 40 Core Hits 426 | 1 11 5 . 6 66 19 9 5 20 44 61 76 27 3 49 24 Critical Hits 33 | . . . . . 1 1 . . . 1 2 14 5 1 5 3 Critical Kills 13 | . . . . . . . . . . . 2 4 5 . 1 1 Critical Parts Destroyed 16 | . . . . . 1 1 . . . 1 . 8 . . 3 2 Melee Attacks 11 | . . 7 . . 4 . . . . . . . . . . . Impact . | . . . . . . . . . . . . . . . . . Slashing 11 | . . 7 . . 4 . . . . . . . . . . . Piercing . | . . . . . . . . . . . . . . . . . Sneak Attacks 1 | . . 1 . . . . . . . . . . . . . . Combat Hostiles . | . . . . . . . . . . . . . . . . . Follow-up Attacks . | . . . . . . . . . . . . . . . . . Damage Inflicted 18288 | 15 387 457 . 170 2241 1267 533 368 1199 2680 2285 2038 490 620 2242 1296 Guns 6301 | 15 104 44 . 46 1343 518 133 76 247 1069 429 1116 286 30 313 532 Cannons 6761 | . . . . . 579 749 103 126 409 24 925 922 204 69 1929 722 Explosions 4828 | . 283 226 . 124 294 . 297 166 543 1443 931 . . 521 . . Melee 212 | . . 187 . . 25 . . . . . . . . . . . Ramming 42 | . . . . . . . . . . . . . . . . 42 Kinetic 5735 | . 41 44 . 46 507 121 . . 27 339 1127 1257 291 77 1481 377 Thermal 5629 | . 66 91 . . 950 834 103 126 409 770 796 . . . 607 877 Explosive 2925 | . 217 135 . 124 . . 297 166 543 1443 . . . . . . Electromagnetic 3224 | 15 63 . . . 759 312 133 76 220 128 362 781 199 22 154 . Impact . | . . . . . . . . . . . . . . . . . Slashing 212 | . . 187 . . 25 . . . . . . . . . . . Piercing . | . . . . . . . . . . . . . . . . . Entropic 521 | . . . . . . . . . . . . . . 521 . . Highest Corruption 7 | . . . . . . 7 7 7 . 4 3 2 . 2 2 5 Average Corruption 3 | . . . . . . 5 7 7 . 3 1 1 . 1 1 4 Corruption Purged 6 | . . . . . . . . . . . 1 3 . . 2 . Effects 98 | . . . . . . 33 13 8 . 11 11 16 . 1 4 1 Message Errors 23 | . . . . . . 10 1 3 . 3 2 2 . 1 1 . Matter Fused 16 | . . . . . . 6 3 1 . 4 2 . . . . . Heat Flow Errors 14 | . . . . . . 5 3 1 . 3 1 1 . . . . Energy Discharges 13 | . . . . . . 4 . 1 . 1 3 4 . . . . Parts Rejected 1 | . . . . . . 1 . . . . . . . . . . Data Loss (minor) 11 | . . . . . . 2 2 1 . . . 3 . . 2 1 Data Loss (major) 2 | . . . . . . . 2 . . . . . . . . . Targeting Errors 15 | . . . . . . 5 2 1 . . 3 4 . . . . Weapon Failures 3 | . . . . . . . . . . . . 2 . . 1 . Overload Shots . | . . . . . . . . . . . . . . . . . Overflow Damage 450 | . 10 12 . . 34 20 . 18 51 47 207 . 3 12 8 28 Projectiles 93 | . . . . . 20 20 . . 14 . . . 3 . 8 28 Explosions 357 | . 10 12 . . 14 . . 18 37 47 207 . . 12 . . Melee . | . . . . . . . . . . . . . . . . . Knockbacks 39 | . . . . . . . . . . . 10 14 3 1 11 . Impact . | . . . . . . . . . . . . . . . . . Kinetic 38 | . . . . . . . . . . . 10 14 3 1 10 . Secondary 1 | . . . . . . . . . . . . . . . 1 . Self-Inflicted Damage 171 | . 36 . . 9 59 . . . . 54 . . . . . 13 Shots 6 | . 1 . . 1 2 . . . . 2 . . . . . . Rammed 7 | . . . . . . . . . . . . . . . . 7 Targets Rammed 9 | . . . . . . . . . . . . . . . . 9 Kicked 2 | . . . . . . . . . . . . . . . . 2 Crushed . | . . . . . . . . . . . . . . . . . Highest Temperature 373 | 20 40 38 . 25 306 264 227 354 336 245 180 159 56 48 280 373 Average Temperature 75 | 15 14 16 . 9 61 72 97 143 107 62 21 35 28 36 129 118 Received Heat Transfer 2833 | . . 123 . 54 360 105 9 . 149 586 54 235 . 12 339 807 Effects 9 | . . . . . 1 . . 1 . . . . . . 5 2 Energy Bleed 2 | . . . . . 1 . . . . . . . . . . 1 Interference 7 | . . . . . . . . 1 . . . . . . 5 1 Siege Activations . | . . . . . . . . . . . . . . . . . Robots Corrupted . | . . . . . . . . . . . . . . . . . Combat Hostiles . | . . . . . . . . . . . . . . . . . Parts Fried 8 | . . . . . 3 . 1 . 1 . 1 . 1 . 1 . Impact Corruptions . | . . . . . . . . . . . . . . . . . Robots Melted . | . . . . . . . . . . . . . . . . . Combat Hostiles . | . . . . . . . . . . . . . . . . . Parts Melted 13 | . . . . . 2 1 . . . 6 . . . . 2 2 Heat Transferred 8514 | . 50 100 . . 1537 1342 200 250 683 1688 550 . . . 900 1214 Parts Sabotaged . | . . . . . . . . . . . . . . . . . Parts Stolen . | . . . . . . . . . . . . . . . . . Parts Stripped . | . . . . . . . . . . . . . . . . . Power Chain Reactions 6 | . 1 . . . 4 . . . . . 1 . . . . . Missiles Intercepted . | . . . . . . . . . . . . . . . . . Alert | -11 -10 -10 -10 -9 -8 -7 -7 -7 -6 -6 -5 -5 -5 -5 -4 -4 ------- Run | Scr Mat Min Exi Min Mat Fac Low Low Fac Ext Fac Upp Upp War Pro Fac Peak Influence 773 | 20 200 143 . 152 773 313 . . 257 162 328 . . . . 142 Initial 282 | . 13 78 . . . 282 . . 151 125 21 . . . . 65 Average 159 | 4 113 106 . 56 450 189 . . 197 58 169 . . . . 67 Maximum Alert Level 3 | . 1 . . . 3 1 . . 1 . 1 . . . . . Low Security (%) 71 | 100 83 100 . 100 16 60 . . 56 100 55 . . . . 100 Level 1 20 | . 16 . . . 13 39 . . 43 . 44 . . . . . Level 2 6 | . . . . . 61 . . . . . . . . . . . Level 3 . | . . . . . 8 . . . . . . . . . . . Level 4 . | . . . . . . . . . . . . . . . . . Level 5 . | . . . . . . . . . . . . . . . . . High Security . | . . . . . . . . . . . . . . . . . Max Security . | . . . . . . . . . . . . . . . . . Squads Dispatched 26 | . . . . . 7 6 . . 1 2 5 . . . . 5 Investigation 2 | . . . . . 1 . . . . . 1 . . . . . Extermination 5 | . . . . . . 2 . . 1 . 2 . . . . . Reinforcement 11 | . . . . . 2 3 . . . 2 2 . . . . 2 Assault 2 | . . . . . 2 . . . . . . . . . . . Garrison 6 | . . . . . 2 1 . . . . . . . . . 3 Intercept . | . . . . . . . . . . . . . . . . . Construction Impeded 4 | . . . . . 1 . . . . 2 . . . . . 1 Haulers Reinforced 2 | . . . . . . . . . . . 1 . . . . 1 Stealth | -11 -10 -10 -10 -9 -8 -7 -7 -7 -6 -6 -5 -5 -5 -5 -4 -4 --------- Run | Scr Mat Min Exi Min Mat Fac Low Low Fac Ext Fac Upp Upp War Pro Fac Distress Signals 11 | . 1 . . . 6 . . . 1 . 1 . . 1 . 1 Communications Jammed 7 | . . . . . . . . . . . 7 . . . . . Distress Signals 7 | . . . . . . . . . . . 7 . . . . . Times Spotted 241 | 1 9 2 . 5 47 20 7 4 13 26 16 21 13 18 22 17 Peak Tracking Total 11 | 1 4 2 . 3 9 4 4 3 5 5 5 7 6 11 7 6 Tactical Retreats 29 | . . . . . 3 . 1 . 2 8 1 5 2 . 3 4 Traps | -11 -10 -10 -10 -9 -8 -7 -7 -7 -6 -6 -5 -5 -5 -5 -4 -4 ------- Run | Scr Mat Min Exi Min Mat Fac Low Low Fac Ext Fac Upp Upp War Pro Fac Traps Triggered 6 | . 2 . . . . 2 . . . 1 1 . . . . . Indirectly . | . . . . . . . . . . . . . . . . . Trap Hack Attempts . | . . . . . . . . . . . . . . . . . Triggered . | . . . . . . . . . . . . . . . . . Disarmed . | . . . . . . . . . . . . . . . . . Reprogrammed . | . . . . . . . . . . . . . . . . . Reused . | . . . . . . . . . . . . . . . . . Traps Extracted . | . . . . . . . . . . . . . . . . . Installed . | . . . . . . . . . . . . . . . . . Triggered 13 | . . . . . . . 1 . . . . . . 12 . . Machines | -11 -10 -10 -10 -9 -8 -7 -7 -7 -6 -6 -5 -5 -5 -5 -4 -4 ---------- Run | Scr Mat Min Exi Min Mat Fac Low Low Fac Ext Fac Upp Upp War Pro Fac Machines Disabled 14 | . 1 2 . . . 1 . . . 2 7 1 . . . . Max in Single Turn 5 | . 1 2 . . . 1 . . . 2 5 1 . . . . Machines Sabotaged . | . . . . . . . . . . . . . . . . . Garrisons Compromised . | . . . . . . . . . . . . . . . . . Overloaded Fab Kills . | . . . . . . . . . . . . . . . . . Fab Network Shutdowns . | . . . . . . . . . . . . . . . . . Hacking | -11 -10 -10 -10 -9 -8 -7 -7 -7 -6 -6 -5 -5 -5 -5 -4 -4 --------- Run | Scr Mat Min Exi Min Mat Fac Low Low Fac Ext Fac Upp Upp War Pro Fac Machines Accessed 41 | . 3 . 4 . 5 5 . . 4 2 6 1 . 7 1 3 Terminals 16 | . 1 . . . 3 2 . . 3 2 3 . . . 1 1 Fabricators 3 | . . . . . . 2 . . . . . . . . . 1 Repair Stations 2 | . 1 . . . . . . . 1 . . . . . . . Recycling Units 4 | . 1 . . . 1 1 . . . . 1 . . . . . Scanalyzers 1 | . . . . . . . . . . . 1 . . . . . Garrison Access 3 | . . . . . 1 . . . . . 1 . . . . 1 Total Hacks 142 | . 5 . 49 . 20 12 . . 9 3 17 1 . 19 2 5 Successful 112 | . 1 . 49 . 16 7 . . 7 2 8 1 . 19 2 . Failed 29 | . 4 . . . 4 4 . . 2 1 9 . . . . 5 Catastrophic 8 | . 1 . . . 1 1 . . 1 . 1 . . . . 3 Database Lockouts 1 | . . . . . . 1 . . . . . . . . . . Manual 7 | . . . . . 3 3 . . . 1 . . . . . . Terminals 43 | . 1 . . . 12 8 . . 6 3 9 . . . 2 2 Fabricators 5 | . . . . . . 3 . . . . . . . . . 2 Repair Stations 6 | . 3 . . . . . . . 3 . . . . . . . Recycling Units 9 | . 1 . . . 5 1 . . . . 2 . . . . . Scanalyzers 4 | . . . . . . . . . . . 4 . . . . . Garrison Access 6 | . . . . . 3 . . . . . 2 . . . . 1 Terminal Hacks 98 | . . . 49 . 9 5 . . 5 2 6 1 . 19 2 . Record 74 | . . . 49 . 4 5 . . 2 1 4 . . 7 2 . Part Schematic 1 | . . . . . . . . . 1 . . . . . . . Prototype ID Bank 11 | . . . . . 1 . . . . . . . . 10 . . Open Door 5 | . . . . . . . . . 1 1 . 1 . 2 . . Emergency Access Points 1 | . . . . . 1 . . . . . . . . . . . Alert Level 1 | . . . . . 1 . . . . . . . . . . . Locate Traps 1 | . . . . . . . . . 1 . . . . . . . Recall Reinforcements 1 | . . . . . . . . . . . 1 . . . . . Hauler Manifests 1 | . . . . . 1 . . . . . . . . . . . Zone Layout 2 | . . . . . 1 . . . . . 1 . . . . . Fabricator Hacks 2 | . . . . . . 2 . . . . . . . . . . Network Status 1 | . . . . . . 1 . . . . . . . . . . Build 1 | . . . . . . 1 . . . . . . . . . . Repair Station Hacks 3 | . 1 . . . . . . . 2 . . . . . . . Scan Component 2 | . 1 . . . . . . . 1 . . . . . . . Repair 1 | . . . . . . . . . 1 . . . . . . . Recycling Unit Hacks 5 | . . . . . 5 . . . . . . . . . . . Recycle Component 1 | . . . . . 1 . . . . . . . . . . . Process 2 | . . . . . 2 . . . . . . . . . . . Report Inventory 1 | . . . . . 1 . . . . . . . . . . . Retrieve Components 1 | . . . . . 1 . . . . . . . . . . . Scanalyzer 2 | . . . . . . . . . . . 2 . . . . . Insert Component 1 | . . . . . . . . . . . 1 . . . . . Analyze 1 | . . . . . . . . . . . 1 . . . . . Garrison Access Hacks 2 | . . . . . 2 . . . . . . . . . . . Unlock Access 1 | . . . . . 1 . . . . . . . . . . . Coupler Status 1 | . . . . . 1 . . . . . . . . . . . Unauthorized Hacks . | . . . . . . . . . . . . . . . . . Terminals . | . . . . . . . . . . . . . . . . . Fabricators . | . . . . . . . . . . . . . . . . . Repair Stations . | . . . . . . . . . . . . . . . . . Recycling Units . | . . . . . . . . . . . . . . . . . Scanalyzers . | . . . . . . . . . . . . . . . . . Garrison Access . | . . . . . . . . . . . . . . . . . Data Cores Recovered . | . . . . . . . . . . . . . . . . . Used . | . . . . . . . . . . . . . . . . . Hacking Detections 23 | . 2 . . . 3 4 . . 3 1 6 . . . 1 3 Full Trace Events 4 | . 1 . . . 2 . . . . . 1 . . . . . Feedback Events . | . . . . . . . . . . . . . . . . . Feedback Blocked . | . . . . . . . . . . . . . . . . . Robot Schematics Acquired . | . . . . . . . . . . . . . . . . . Robots Built . | . . . . . . . . . . . . . . . . . Matter . | . . . . . . . . . . . . . . . . . Time . | . . . . . . . . . . . . . . . . . Total Robot Build Rating . | . . . . . . . . . . . . . . . . . Part Schematics Acquired 2 | . . . . . . . . . 1 . 1 . . . . . Parts Built 2 | . . . . . . 2 . . . . . . . . . . Matter 168 | . . . . . . 168 . . . . . . . . . . Time 84 | . . . . . . 84 . . . . . . . . . . Total Part Build Rating 8 | . . . . . . 8 . . . . . . . . . . Parts Repaired 1 | . . . . . . . . . 1 . . . . . . . Time 22 | . . . . . . . . . 22 . . . . . . . Parts Recycled 1 | . . . . . 1 . . . . . . . . . . . Recycled Matter 2 | . . . . . 2 . . . . . . . . . . . Retrieved Matter . | . . . . . . . . . . . . . . . . . Retrieved Components . | . . . . . . . . . . . . . . . . . Parts Scanalyzed 1 | . . . . . . . . . . . 1 . . . . . Part Schematics Acquired 1 | . . . . . . . . . . . 1 . . . . . Parts Damaged . | . . . . . . . . . . . . . . . . . Bothacking | -11 -10 -10 -10 -9 -8 -7 -7 -7 -6 -6 -5 -5 -5 -5 -4 -4 ------------ Run | Scr Mat Min Exi Min Mat Fac Low Low Fac Ext Fac Upp Upp War Pro Fac Used RIF Installer . | . . . . . . . . . . . . . . . . . Robots Hacked 1 | . . . . . . 1 . . . . . . . . . . Non-combat . | . . . . . . . . . . . . . . . . . Combat 1 | . . . . . . 1 . . . . . . . . . . Robot Hacks Applied 1 | . . . . . . 1 . . . . . . . . . . parse_system 1 | . . . . . . 1 . . . . . . . . . . Relay Couplers Released 3 | . . . . . . 3 . . . . . . . . . . Programmers 3 | . . . . . . 3 . . . . . . . . . . Robots Rewired 6 | . . . . . . . . . . 4 . 2 . . . . Allies Hacked . | . . . . . . . . . . . . . . . . . Hacks Repelled . | . . . . . . . . . . . . . . . . . Allies | -11 -10 -10 -10 -9 -8 -7 -7 -7 -6 -6 -5 -5 -5 -5 -4 -4 -------- Run | Scr Mat Min Exi Min Mat Fac Low Low Fac Ext Fac Upp Upp War Pro Fac Total Allies 12 | . . . . 5 . . . . . 5 . 2 . . . . Largest Group 5 | . . . . 5 4 . . . . 4 . 2 2 . . . Highest-Rated Group 124 | . . . . 91 71 . . . . 124 . 54 54 . . . Highest-Rated Ally 31 | . . . . 31 31 . . . . 31 . 30 30 . . . Total Orders 1 | . . . . . . . . . . 1 . . . . . . FOLLOW 1 | . . . . . . . . . . 1 . . . . . . Ally Attacks 115 | . . . . 5 87 . . . . 22 . . 1 . . . Total Damage 1509 | . . . . 67 1065 . . . . 356 . . 21 . . . Kills 20 | . . . . 3 12 . . . . 4 . . 1 . . . Allies Corrupted . | . . . . . . . . . . . . . . . . . Allies Melted 1 | . . . . . . . . . . . . . . 1 . . Intel | -11 -10 -10 -10 -9 -8 -7 -7 -7 -6 -6 -5 -5 -5 -5 -4 -4 ------- Run | Scr Mat Min Exi Min Mat Fac Low Low Fac Ext Fac Upp Upp War Pro Fac Robot Analysis Total . | . . . . . . . . . . . . . . . . . Derelict Logs Recovered 8 | . . 1 . 1 . . 3 . . . . 1 2 . . . Drone Launches . | . . . . . . . . . . . . . . . . . Drone Recoveries . | . . . . . . . . . . . . . . . . . Exploration | -11 -10 -10 -10 -9 -8 -7 -7 -7 -6 -6 -5 -5 -5 -5 -4 -4 ------------- Run | Scr Mat Min Exi Min Mat Fac Low Low Fac Ext Fac Upp Upp War Pro Fac Turns Passed 14842 | 85 271 340 839 451 842 1463 318 309 587 1881 1358 1169 1375 1654 1408 492 Spaces Moved 10635 | 96 240 343 928 428 429 1287 271 274 436 1440 755 696 866 1079 810 257 Core 20 | 20 . . . . . . . . . . . . . . . . Treads . | . . . . . . . . . . . . . . . . . Legs 4336 | . . . . . 159 . . . . 65 404 696 866 1079 810 257 Wheels 6279 | 76 240 343 928 428 270 1287 271 274 436 1375 351 . . . . . Hover . | . . . . . . . . . . . . . . . . . Flight . | . . . . . . . . . . . . . . . . . Fastest Speed 50 | 50 80 80 90 90 90 90 105 105 105 100 120 120 150 120 150 120 Average Speed 120 | 73 80 85 90 94 119 100 105 105 105 109 143 138 150 149 153 141 Slowest Speed 240 | 80 90 90 90 100 240 105 105 105 120 180 210 150 150 150 180 180 Overloaded Moves . | . . . . . . . . . . . . . . . . . Propulsion Burnouts . | . . . . . . . . . . . . . . . . . Robots Hopped . | . . . . . . . . . . . . . . . . . Cave-ins Triggered . | . . . . . . . . . . . . . . . . . Exploration Rate (%) 48 | 6 29 57 93 83 30 24 45 32 13 67 18 70 85 86 87 4 Regions Visited 16 Branch Regions 10 Pre-discovered Areas 4 | . . 1 1 2 . . . . . . . . . . . . Known Exits Taken 15 | . 1 1 1 1 1 1 1 1 1 1 1 1 1 1 1 . Unknown Exits Taken 1 | 1 . . . . . . . . . . . . . . . . Scrap Searched 17 | . . 2 . 3 . . 3 . . . . 2 2 . 5 . Spaces Dug 6 | . 6 . . . . . . . . . . . . . . . Terrain Destroyed 298 | . 14 23 . 10 27 4 31 8 19 77 16 . . 18 41 10 Melee . | . . . . . . . . . . . . . . . . . Projectile 56 | . . . . . . 4 . . . 1 . . . . 41 10 AOE 242 | . 14 23 . 10 27 . 31 8 19 76 16 . . 18 . . Terrain Rammed . | . . . . . . . . . . . . . . . . . Walls Destroyed . | . . . . . . . . . . . . . . . . . Machines Disabled . | . . . . . . . . . . . . . . . . . Actions | -11 -10 -10 -10 -9 -8 -7 -7 -7 -6 -6 -5 -5 -5 -5 -4 -4 --------- Run | Scr Mat Min Exi Min Mat Fac Low Low Fac Ext Fac Upp Upp War Pro Fac Total 11906 | 106 290 378 933 473 604 1394 288 281 523 1628 965 800 903 1113 903 324 Wait 257 | . 4 4 . 11 10 11 . . 43 51 82 16 5 4 6 10 Move 10619 | 95 239 342 927 427 428 1286 270 273 435 1439 754 695 865 1078 809 257 Hop . | . . . . . . . . . . . . . . . . . Pick Up 141 | 5 5 7 3 8 18 17 4 . 4 21 27 4 3 6 8 1 Fast Attach 63 | 4 8 . . . 9 5 . . 3 13 7 1 . 2 7 4 Attach 89 | 1 4 2 . 1 14 4 1 . 4 23 6 4 . 5 7 13 Detach 15 | . 2 . . . 1 . . . 1 1 5 1 . 1 . 3 Swap 127 | . 6 5 1 8 21 18 3 2 11 10 21 6 2 3 7 3 Drop 127 | . 6 5 2 10 22 22 3 . 5 2 28 3 3 10 6 . Fire 403 | 1 16 6 . 8 77 31 7 6 17 42 35 54 25 4 50 24 Melee 11 | . . 7 . . 4 . . . . . . . . . . . Ram 2 | . . . . . . . . . . . . . . . . 2 Kick 7 | . . . . . . . . . . . . . . . . 7 Crush . | . . . . . . . . . . . . . . . . . Escape Stasis 8 | . . . . . . . . . . 8 . . . . . . Rewire 37 | . . . . . . . . . . 18 . 16 . . 3 . Trap . | . . . . . . . . . . . . . . . . . Miscellaneous . | . . . . . . . . . . . . . . . . . Route ------- -11/Scrapyard -10/Materials -10/Mines (discovered 2 exits: *Mat / *Exi) -10/Exiles (discovered 2 exits: *Min x2) -9/Mines (discovered 2 exits: *Mat x2) -8/Materials (discovered 2 exits: *Fac / Gar) -7/Factory -7/Lower Caves -7/Lower Caves -6/Factory (discovered 2 exits: Fac / *Ext) -6/Extension (discovered 2 exits: *Fac / *Cet) -5/Factory -5/Upper Caves -5/Upper Caves (discovered 2 exits: *Fac / *War) -5/Warlord -4/Proximity Caves -4/Factory (discovered 4 exits: Res x2 / Upp / Arm) History --------- Turn | Location | Event 2 | -11/Scrapyard | Met Revision 17 64 | -11/Scrapyard | Discovered new exit (range 8) 86 | -11/Scrapyard | Entered Materials 196 | -10/Materials | Discovered new exit (range 13) 291 | -10/Materials | Identified exit to Mines 323 | -10/Materials | Build established: Mutant 357 | -10/Materials | Entered Mines 376 | -10/Mines | A weapon hastily lodged in a ceiling crevice suddenly fell to the ground 459 | -10/Mines | Learned location of Recycling (-7) 540 | -10/Mines | Discovered new exit (range 9) 653 | -10/Mines | Identified exit to Materials 692 | -10/Mines | Deemed a non-threat by the Exiles lab entrance 693 | -10/Mines | Discovered new exit (range 5) 697 | -10/Mines | Identified exit to Exiles 697 | -10/Mines | Entered Exiles 720 | -10/Exiles | Met 8R-AWN 735 | -10/Exiles | Met EX-HEX 805 | -10/Exiles | Met EX-DEC 842 | -10/Exiles | Visited The Gauntlet 978 | -10/Exiles | Learned location of Zion (-7) 1009 | -10/Exiles | Met EX-BIN 1304 | -10/Exiles | Discovered new exit (range 14) 1314 | -10/Exiles | Identified exit to Mines 1427 | -10/Exiles | Discovered exit to Mines (range 14) 1536 | -10/Exiles | Entered Mines 1557 | -9/Mines | Core integrity fell below 50% 1646 | -9/Mines | Learned location of Storage (-7) 1750 | -9/Mines | Assisted by bots powering up and referring to "LRC-V3" 1857 | -9/Mines | Discovered new exit (range 9) 1880 | -9/Mines | Identified exit to Materials 1965 | -9/Mines | Discovered exit to Materials (range 11) 1987 | -9/Mines | Entered Materials 1987 | -8/Materials | Accompanied by 4 allies 1987 | -8/Materials | Evolved 4 slots: Utility x3, Weapon x1 1992 | -8/Materials | Led the pair of lost Derelicts to an unsafe place 2359 | -8/Materials | Lost 5 parts (1p1u3w) 2544 | -8/Materials | Lost 3 parts (1u2w) 2674 | -8/Materials | Garrison activated, responded to threat 2744 | -8/Materials | Destroyed 7 combat bots 2763 | -8/Materials | Identified exit to Garrison 2787 | -8/Materials | First assault squad dispatched 2815 | -8/Materials | Discovered new exit (range 10) 2824 | -8/Materials | Identified exit to Factory 2829 | -8/Materials | Entered Factory 2829 | -7/Factory | Evolved 2 slots: Propulsion x1, Utility x1 3129 | -7/Factory | Build established: Scavenger-Skirmisher 3712 | -7/Factory | Fabricated Plasma Cannon? 3802 | -7/Factory | Garrison activated, responded to threat 4125 | -7/Factory | Central database locked down 4219 | -7/Factory | Build established: Skirmisher 4243 | -7/Factory | Discovered new exit (range 18) 4291 | -7/Factory | Identified exit to Lower Caves 4292 | -7/Factory | Entered Lower Caves 4311 | -7/Lower Caves | Learned location of 1 exit from Factory 4502 | -7/Lower Caves | Learned 12 Factory zone layouts 4521 | -7/Lower Caves | Learned 4 Factory zone layouts 4561 | -7/Lower Caves | Discovered new exit (range 15) 4596 | -7/Lower Caves | Identified exit to Lower Caves 4610 | -7/Lower Caves | Entered another Lower Caves area 4623 | -7/Lower Caves | Discovered new exit (range 11) 4655 | -7/Lower Caves | Identified exit to Factory 4919 | -7/Lower Caves | Entered Factory 4919 | -6/Factory | Evolved 2 slots: Utility x2 4920 | -6/Factory | Identified exit to Factory 5206 | -6/Factory | Repaired Plasma Cannon 5481 | -6/Factory | Discovered new exit (range 20) 5494 | -6/Factory | Lost 3 parts (1n2w) 5505 | -6/Factory | Identified exit to Extension 5506 | -6/Factory | Entered Extension 5610 | -6/Extension | Spotted B-75 Beast 5748 | -6/Extension | Rescued a captive Derelict 5963 | -6/Extension | Lost 7 parts (1p1n3u2w) 6503 | -6/Extension | Destroyed B-75 Beast 6506 | -6/Extension | Disrupted transfer network 6514 | -6/Extension | Spotted B-75 Beast 6578 | -6/Extension | Lost 4 parts (1n3w) 6997 | -6/Extension | Build established: Scavenger-Mutant 7018 | -6/Extension | Lost 5 parts (1n2u2w) 7203 | -6/Extension | Core integrity fell below 50% 7240 | -6/Extension | Lost 17 parts (2p5n5u5w) 7288 | -6/Extension | Discovered exit to Factory (range 16) 7289 | -6/Extension | Discovered new exit (range 15) 7334 | -6/Extension | Identified exit to Cetus 7387 | -6/Extension | Entered Factory 7387 | -5/Factory | Evolved 2 slots: Utility x2 7703 | -5/Factory | Build established: Gunner 8727 | -5/Factory | Discovered new exit (range 7) 8741 | -5/Factory | Identified exit to Upper Caves 8745 | -5/Factory | Entered Upper Caves 9160 | -5/Upper Caves | Attracted the attention of an 0b10 outpost 9672 | -5/Upper Caves | Discovered new exit (range 15) 9693 | -5/Upper Caves | Identified exit to Upper Caves 9719 | -5/Upper Caves | Build established: Tank 9728 | -5/Upper Caves | Learned Factory stockpile data 9914 | -5/Upper Caves | Entered another Upper Caves area 9914 | -5/Upper Caves | Accompanied by 2 allies 9950 | -5/Upper Caves | Discovered new exit (range 8) 9959 | -5/Upper Caves | Identified exit to Factory 10123 | -5/Upper Caves | Attracted the attention of an 0b10 checkpoint 10318 | -5/Upper Caves | Learned Factory interactive machine intel 10399 | -5/Upper Caves | Discovered new exit (range 14) 10417 | -5/Upper Caves | Identified exit to Warlord 11289 | -5/Upper Caves | Entered Warlord 11463 | -5/Warlord | Discovered new exit (range 15) 11480 | -5/Warlord | Identified exit to Proximity Caves 11844 | -5/Warlord | Opened side exit 12021 | -5/Warlord | Met Warlord 12046 | -5/Warlord | Warlord's base attacked by MAIN.C 12396 | -5/Warlord | Warlord forces counterattacked 12433 | -5/Warlord | Found Signal Generator 12524 | -5/Warlord | Found Prototype Launcher 12526 | -5/Warlord | Identified Vortex Catalyst Activator 12721 | -5/Warlord | Warlord base infiltrated, sounded retreat 12726 | -5/Warlord | Spotted Striker 12726 | -5/Warlord | Spotted Striker 12733 | -5/Warlord | Spotted Striker 12777 | -5/Warlord | Spotted Striker 12813 | -5/Warlord | Found Prototype Ballistic Cannon 12943 | -5/Warlord | Entered Proximity Caves 12980 | -4/Proximity Caves | Attracted the attention of an 0b10 base 13019 | -4/Proximity Caves | Identified Hvy. Autocannon 13069 | -4/Proximity Caves | Destroyed 7 combat bots 13075 | -4/Proximity Caves | Lost 7 parts (2p1n1u3w) 13129 | -4/Proximity Caves | Learned location of 1 exit from Factory 13129 | -4/Proximity Caves | Learned 8 Factory zone layouts 14158 | -4/Proximity Caves | Build established: Derelict-Tank 14265 | -4/Proximity Caves | Discovered exit to Factory (range 12) 14351 | -4/Proximity Caves | Entered Factory 14351 | -4/Factory | Evolved 2 slots: Utility x2 14352 | -4/Factory | Identified exit to Armory 14353 | -4/Factory | Identified exit to Research 14354 | -4/Factory | Identified exit to Upper Caves 14356 | -4/Factory | Loaded intel: 46 interactive machine locations 14576 | -4/Factory | Garrison activated, responded to threat 14659 | -4/Factory | Lost 8 parts (1p4u3w) 14712 | -4/Factory | Lost 7 parts (1p1n2u3w) 14829 | -4/Factory | Core integrity fell below 50% 14838 | -4/Factory | Core integrity fell below 20% 14843 | -4/Factory | Destroyed by B-60 Warrior with Heavy Mace Last Messages --------------- 14825_ Slammed into L-61 Swordsman. 14825_ Penetrated by Slug. 14825_ Broken Microactuators destroyed. 14825_ System corrupted by crushing effect (+2). 14825_ Penetrated by Slug. 14828_ Imp. Core Analyzer destroyed. 14828_ Penetrated by Slug. 14828_ Knocked back. 14831_ Penetrated by Slug. 14833_ G-67 Veteran suffers critical hit. 14835_ System corrupted: Component data lost. 14836_ Slammed into Y-64 Sentinel. 14836_ Penetrated by Slug. 14836_ G-67 Veteran destroyed. 14839_ Penetrated by Slug. 14842_ Hcp. Storage Unit destroyed. 14842_ T-07 Excavator destroyed. [Achievement: First Step to Greatness] [Achievement: 5k Club] [Achievement: 10k Club] Map ----- +----------------------------------------------------+ | #????????????????????????????????????????????????? | | ????????????????????????????????????????????????? | | "????????????????????????????????????????????????? | | "????????????????????????????????????????????????? | | "????????????????????????????????????????????????? | | "????????????????????????????????????????????????? | | ????????????????????????????????????????????????? | | ?????????????????????###########"""?????????????? | | ?????????????????????# #"R??????????????? | | ?????????????????????# #"""?????????????? | | #?????????????????????# #????????????????? | | ??????????????????????# #????????????????? | | ??????????????????????# #????????????????? | | ??????????????????????# #????????????????? | | ???????????????????? ?# #????????????????? | | ???????????????????? ?# #????????????????? | | ???????????????????# ## #????????????????? | | ???????????????????# ## #????????????????? | | ???????????????????# ## ## #??? | | ???????????????????# ## ## #??? | | ???????????????????# ## ## #??? | | ???????????????????# ## * ## #??? | | ????????????????#### ## !%= ## #??? | | ????????????????# # =%! ## #??? | | ????????????????# ###/##############+######??? | | ????????????????# =@ #??? | | ????????????????# YlYb #??? | | ????????????????# #??? | | ################# #??? | | #??? | | ###################+####################+####+##?? | | ????????????# #??????# #?? | | ????????????# """"" #??????# #?? | | ????????????# ! "" F" #??????# """" #?? | | ############# "" "" #??????# """" #?? | | + #??????# """" #?? | | ############# !! #??????# """" #?? | | #????# ! """" #??????# """" #?? | | """ #????# """" #??????# """" #?? | | """" #????# """" #??????# "T" #?? | | """" #????# """" #??????# """ #?? | | #????# ! #??????# #?? | | ########????###############??????###############?? | | | | | | | | | | | | | | | +----------------------------------------------------+ Best States ------------- Heat Dissipation 105 Energy Generation 28 Energy Capacity 740 Matter Stores 500 Matter Capacity 500 Sight Range 16 Robot Scan Range 10 Terrain Scan Range 20 Terrain Scan Density 210 Jamming Range 12 Power Amplification 30 Armor Coverage 700 Resistance: KI 30 Resistance: EX 25 Propulsion Shielding 66 Weapon Shielding 66 Point Defense Rating 160 Weapon Cycling 20 Melee Speed Boost 20 Evasion (%) 50 Targeting Accuracy 8 Target Analysis 5 Core Analysis 8 Particle Charging 15 Defensive Hacking 10 Item Schematics ----------------- Tesla Rifle | -6/Factory | Hacked Imp. Remote Datajack | -5/Factory | Scanalyzed Robot Schematics ------------------ None Fabricated ------------ Plasma Cannon | x2 | -7/Factory | Preloaded Alien Tech Used ----------------- None Achievements -------------- 10k Club 5k Club A New Friend A Powerful Ally? Charge!!! Crack Shot Explorer First Step to Greatness Hey, That's Mine! I'm Back, Baby! Just What I Needed Knowing Is Half The Battle Librarian Loot Pinata Made in Tau Ceti IV More Dakka Please Novice Programmer Omniscient Cartographer One Hack Too Far Oops Part-time Mechanic Please Form A Line Remodeling Respectable Loadout Risk Taker Serviceable Loadout Shopping List Significant Disruption Storm Trooper The More The Merrier Tourist Troublemaker Uninvited Guest Challenges ------------ None Game ------ Seed DeuteriumCannonRouter Manual? 0 Play Time 07:38:51 Cumulative 15.2 hours Start 2021.03.06 @ 00:40:55 End 2021.03.08 @ 00:54:50 Sessions 12 Manual Loads 0 Difficulty Rogue Special Mode None Game No. 1 Rogue 1 Adventurer 0 Explorer 0 Win Type - Total 0 Types 0/0/0/0/0/0/0/0/0 Lore% 13 Gallery% 11 Achievement% 12 Wizard Run 0 Options --------- ASCII 0 Keyboard 1 Movement Numpad Keybinds 0 Fullscreen 2 Font 24/Proggy Map View 76x50 Tactical HUD 1 Map Filters NONE Filters NONE Steam X RUN: b481a072-381e-43e0-b2bb-210bae8d7b1c